Workbook

Sheet 学硕
A1: 江苏科技大学 材料科学与工程 学院 2025年硕士研究生复试排序表
A2: 学院（章）： 专业代码及专业名称：
A3: 生源类别（一志愿或调剂） | B3: 复试专业 代码 | C3: 复试专业 名称 | D3: 复试研究方向代码 （仅按研究方向招生的专业需填写） | E3: 姓名 | F3: 考生编号 | G3: A 初试总成绩（含加分） | H3: B 专业课考试（考核）成绩 | I3: C 口语听力总成绩 | J3: D 专业知识面试成绩 | K3: E 政治（MBA/MPA、MPAcc） | L3: （B+C+D+E) 复试总成绩 （保留至小数点后1位） | M3: 综合成绩 （保留至小数点后2位小数） 综合成绩=初试成绩*70%+复试总成绩*30% | N3: 综合成绩排名 | O3: 备注
A4: 一志愿 | B4: 080500 | C4: 材料科学与工程 | E4: 蒋凯 | F4: 102895210700528 | G4: 318 | H4: =VLOOKUP(E4,[1]sheet1!$C$4:$L$9,10,FALSE) -> 112 | I4: 38 | J4: 90 | L4: =H4+I4+J4 -> 240 | M4: =G4*0.7+L4*0.3 -> 294.45 | N4: 1
A5: 一志愿 | B5: 080500 | C5: 材料科学与工程 | E5: 崔中原 | F5: 102895210703138 | G5: 293 | H5: =VLOOKUP(E5,[1]sheet1!$C$4:$L$9,10,FALSE) -> 128 | I5: 39 | J5: 86 | L5: =H5+I5+J5 -> 252 | M5: =G5*0.7+L5*0.3 -> 280.78 | N5: 2
A6: 一志愿 | B6: 080500 | C6: 材料科学与工程 | E6: 刘泽民 | F6: 102895210700536 | G6: 298 | H6: =VLOOKUP(E6,[1]sheet1!$C$4:$L$9,10,FALSE) -> 104 | I6: 44 | J6: 82 | L6: =H6+I6+J6 -> 230 | M6: =G6*0.7+L6*0.3 -> 277.53 | N6: 3
A7: 一志愿 | B7: 080500 | C7: 材料科学与工程 | E7: 秦敬冉 | F7: 102895210704405 | G7: 287 | H7: =VLOOKUP(E7,[1]sheet1!$C$4:$L$9,10,FALSE) -> 105 | I7: 47 | J7: 89 | L7: 240 | M7: 272.98 | N7: 4
A8: 一志愿 | B8: 080500 | C8: 材料科学与工程 | E8: 刘德权 | F8: 102895210700534 | G8: 281 | H8: =VLOOKUP(E8,[1]sheet1!$C$4:$L$9,10,FALSE) -> 103 | I8: 43 | J8: 84 | L8: 230 | M8: 265.78 | N8: 5
A9: 一志愿 | B9: 080500 | C9: 材料科学与工程 | E9: 唐康杰 | F9: 102895210700542 | G9: 270 | H9: =VLOOKUP(E9,[1]sheet1!$C$4:$L$9,10,FALSE) -> 117 | I9: 43 | J9: 88 | L9: 248 | M9: 263.43 | N9: 6
M12: 2025-03-28

Sheet 专硕
A1: 江苏科技大学 材料科学与工程 学院 2025年硕士研究生复试排序表
A2: 学院（章）： 专业代码及专业名称：材料与化工
A3: 生源类别（一志愿或调剂） | B3: 复试专业 代码 | C3: 复试专业 名称 | D3: 复试研究方向代码 （仅按研究方向招生的专业需填写） | E3: 姓名 | F3: 考生编号 | G3: A 初试总成绩（含加分） | H3: B 专业课考试（考核）成绩 | I3: C 口语听力总成绩 | J3: D 专业知识面试成绩 | K3: E 政治（MBA/MPA、MPAcc） | L3: （B+C+D+E) 复试总成绩 （保留至小数点后1位） | M3: 综合成绩 （保留至小数点后2位小数） 综合成绩=初试成绩*70%+复试总成绩*30% | N3: 综合成绩排名 | O3: 备注
A4: 一志愿 | B4: 085600 | C4: 材料与化工 | E4: 李光耀 | F4: 102895210703141 | G4: 351 | H4: =VLOOKUP(E4,[1]sheet1!$C$10:$L$81,10,FALSE) -> 123 | I4: 45 | J4: 90 | L4: =H4+I4+J4 -> 258 | M4: =G4*0.7+L4*0.3 -> 323.10 | N4: 1
A5: 一志愿 | B5: 085600 | C5: 材料与化工 | E5: 倪泽远 | F5: 102895210701969 | G5: 345 | H5: =VLOOKUP(E5,[1]sheet1!$C$10:$L$81,10,FALSE) -> 117 | I5: 48 | J5: 82 | L5: 247 | M5: 315.60 | N5: 2
A6: 一志愿 | B6: 085600 | C6: 材料与化工 | E6: 唐轶群 | F6: 102895210701975 | G6: 346 | H6: =VLOOKUP(E6,[1]sheet1!$C$10:$L$81,10,FALSE) -> 110 | I6: 35 | J6: 89 | L6: 234 | M6: 312.40 | N6: 3
A7: 一志愿 | B7: 085600 | C7: 材料与化工 | E7: 丛培澍 | F7: 102895210700556 | G7: 344 | H7: =VLOOKUP(E7,[1]sheet1!$C$10:$L$81,10,FALSE) -> 98 | I7: 45 | J7: 86 | L7: 229 | M7: 309.50 | N7: 4
A8: 一志愿 | B8: 085600 | C8: 材料与化工 | E8: 夏星翼 | F8: 102895210703728 | G8: 328 | H8: =VLOOKUP(E8,[1]sheet1!$C$10:$L$81,10,FALSE) -> 132 | I8: 40 | J8: 90 | L8: 262 | M8: 308.20 | N8: 5
A9: 一志愿 | B9: 085600 | C9: 材料与化工 | E9: 王卓 | F9: 102895210704710 | G9: 329 | H9: =VLOOKUP(E9,[1]sheet1!$C$10:$L$81,10,FALSE) -> 119 | I9: 45 | J9: 93 | L9: 257 | M9: 307.40 | N9: 6
A10: 一志愿 | B10: 085600 | C10: 材料与化工 | E10: 朱纪伟 | F10: 102895210704380 | G10: 331 | H10: =VLOOKUP(E10,[1]sheet1!$C$10:$L$81,10,FALSE) -> 126 | I10: 35 | J10: 80 | L10: 241 | M10: 304.00 | N10: 7
A11: 一志愿 | B11: 085600 | C11: 材料与化工 | E11: 黄功磊 | F11: 102895210705108 | G11: 328 | H11: =VLOOKUP(E11,[1]sheet1!$C$10:$L$81,10,FALSE) -> 112 | I11: 40 | J11: 95 | L11: 247 | M11: 303.70 | N11: 8
A12: 一志愿 | B12: 085600 | C12: 材料与化工 | E12: 彭淇 | F12: 102895210700582 | G12: 339 | H12: =VLOOKUP(E12,[1]sheet1!$C$10:$L$81,10,FALSE) -> 91 | I12: 45 | J12: 85 | L12: 221 | M12: 303.60 | N12: 9
A13: 一志愿 | B13: 085600 | C13: 材料与化工 | E13: 翟志恒 | F13: 102895210702242 | G13: 326 | H13: =VLOOKUP(E13,[1]sheet1!$C$10:$L$81,10,FALSE) -> 105 | I13: 45 | J13: 96 | L13: 246 | M13: 302.00 | N13: 10
A14: 一志愿 | B14: 085600 | C14: 材料与化工 | E14: 刘皓然 | F14: 102895210700570 | G14: 336 | H14: =VLOOKUP(E14,[1]sheet1!$C$10:$L$81,10,FALSE) -> 91 | I14: 42 | J14: 85 | L14: 218 | M14: 300.60 | N14: 11
A15: 一志愿 | B15: 085600 | C15: 材料与化工 | E15: 李凌宇 | F15: 102895210700567 | G15: 328 | H15: =VLOOKUP(E15,[1]sheet1!$C$10:$L$81,10,FALSE) -> 105 | I15: 41 | J15: 88 | L15: 234 | M15: 299.80 | N15: 12
A16: 一志愿 | B16: 085600 | C16: 材料与化工 | E16: 艾昕 | F16: 102895210701477 | G16: 317 | H16: =VLOOKUP(E16,[1]sheet1!$C$10:$L$81,10,FALSE) -> 121 | I16: 40 | J16: 90 | L16: 251 | M16: 297.20 | N16: 13
A17: 一志愿 | B17: 085600 | C17: 材料与化工 | E17: 缪延骏 | F17: 102895210700581 | G17: 326 | H17: =VLOOKUP(E17,[1]sheet1!$C$10:$L$81,10,FALSE) -> 91 | I17: 40 | J17: 80 | L17: 211 | M17: 291.50 | N17: 14
A18: 一志愿 | B18: 085600 | C18: 材料与化工 | E18: 郑艺琳 | F18: 102895210703677 | G18: 306 | H18: =VLOOKUP(E18,[1]sheet1!$C$10:$L$81,10,FALSE) -> 128 | I18: 44 | J18: 83 | L18: 255 | M18: 290.70 | N18: 15
A19: 一志愿 | B19: 085600 | C19: 材料与化工 | E19: 王宇杰 | F19: 102895210701980 | G19: 319 | H19: =VLOOKUP(E19,[1]sheet1!$C$10:$L$81,10,FALSE) -> 99 | I19: 41 | J19: 80 | L19: 220 | M19: 289.28 | N19: 16
A20: 一志愿 | B20: 085600 | C20: 材料与化工 | E20: 田家嵘 | F20: 102895210702879 | G20: 317 | H20: =VLOOKUP(E20,[1]sheet1!$C$10:$L$81,10,FALSE) -> 114 | I20: 40 | J20: 70 | L20: 224 | M20: 289.10 | N20: 17
A21: 一志愿 | B21: 085600 | C21: 材料与化工 | E21: 张宇 | F21: 102895210701484 | G21: 323 | H21: =VLOOKUP(E21,[1]sheet1!$C$10:$L$81,10,FALSE) -> 98 | I21: 42 | J21: 69 | L21: 209 | M21: 288.80 | N21: 18
A22: 一志愿 | B22: 085600 | C22: 材料与化工 | E22: 侯彤彤 | F22: 102895210703139 | G22: 316 | H22: =VLOOKUP(E22,[1]sheet1!$C$10:$L$81,10,FALSE) -> 93 | I22: 45 | J22: 85 | L22: 223 | M22: 288.10 | N22: 19
A23: 一志愿 | B23: 085600 | C23: 材料与化工 | E23: 庄嘉怡 | F23: 102895210701995 | G23: 309 | H23: =VLOOKUP(E23,[1]sheet1!$C$10:$L$81,10,FALSE) -> 119 | I23: 35 | J23: 84 | L23: 238 | M23: 287.70 | N23: 20
A24: 一志愿 | B24: 085600 | C24: 材料与化工 | E24: 唐宇轩 | F24: 102895210700588 | G24: 320 | H24: =VLOOKUP(E24,[1]sheet1!$C$10:$L$81,10,FALSE) -> 94 | I24: 40 | J24: 78 | L24: 212 | M24: 287.60 | N24: 21
A25: 一志愿 | B25: 085600 | C25: 材料与化工 | E25: 张建飞 | F25: 102895210701483 | G25: 319 | H25: =VLOOKUP(E25,[1]sheet1!$C$10:$L$81,10,FALSE) -> 102 | I25: 36 | J25: 73 | L25: 211 | M25: 286.60 | N25: 22
A26: 一志愿 | B26: 085600 | C26: 材料与化工 | E26: 周承军 | F26: 102895210701993 | G26: 314 | H26: =VLOOKUP(E26,[1]sheet1!$C$10:$L$81,10,FALSE) -> 116 | I26: 36 | J26: 70 | L26: 222 | M26: 286.40 | N26: 23
A27: 一志愿 | B27: 085600 | C27: 材料与化工 | E27: 孟心悦 | F27: 102895210700579 | G27: 312 | H27: =VLOOKUP(E27,[1]sheet1!$C$10:$L$81,10,FALSE) -> 91 | I27: 45 | J27: 90 | L27: 226 | M27: 286.20 | N27: 24
A28: 一志愿 | B28: 085600 | C28: 材料与化工 | E28: 刘明涛 | F28: 102895210701965 | G28: 307 | H28: =VLOOKUP(E28,[1]sheet1!$C$10:$L$81,10,FALSE) -> 90 | I28: 46 | J28: 98 | L28: 234 | M28: 285.10 | N28: 25
A29: 一志愿 | B29: 085600 | C29: 材料与化工 | E29: 丁铆虔 | F29: 102895210701958 | G29: 308 | H29: =VLOOKUP(E29,[1]sheet1!$C$10:$L$81,10,FALSE) -> 102 | I29: 40 | J29: 83 | L29: 225 | M29: 283.10 | N29: 26
A30: 一志愿 | B30: 085600 | C30: 材料与化工 | E30: 高嘉欣 | F30: 102895210700883 | G30: 304 | H30: =VLOOKUP(E30,[1]sheet1!$C$10:$L$81,10,FALSE) -> 99 | I30: 43 | J30: 88 | L30: 230 | M30: 281.80 | N30: 27
A31: 一志愿 | B31: 085600 | C31: 材料与化工 | E31: 林明富 | F31: 102895210705124 | G31: 305 | H31: =VLOOKUP(E31,[1]sheet1!$C$10:$L$81,10,FALSE) -> 108 | I31: 38 | J31: 80 | L31: 226 | M31: 281.30 | N31: 28
A32: 一志愿 | B32: 085600 | C32: 材料与化工 | E32: 汪传佳 | F32: 102895210700592 | G32: 306 | H32: =VLOOKUP(E32,[1]sheet1!$C$10:$L$81,10,FALSE) -> 91 | I32: 43 | J32: 89 | L32: 223 | M32: 281.10 | N32: 29
A33: 一志愿 | B33: 085600 | C33: 材料与化工 | E33: 蒋向阳 | F33: 102895210703140 | G33: 297 | H33: =VLOOKUP(E33,[1]sheet1!$C$10:$L$81,10,FALSE) -> 112 | I33: 35 | J33: 92 | L33: 239 | M33: 279.60 | N33: 30
A34: 一志愿 | B34: 085600 | C34: 材料与化工 | E34: 庄杨洋 | F34: 102895210702597 | G34: 309 | H34: =VLOOKUP(E34,[1]sheet1!$C$10:$L$81,10,FALSE) -> 97 | I34: 38 | J34: 74 | L34: 209 | M34: 279.00 | N34: 31
A35: 一志愿 | B35: 085600 | C35: 材料与化工 | E35: 陈昊阳 | F35: 102895210701955 | G35: 295 | H35: =VLOOKUP(E35,[1]sheet1!$C$10:$L$81,10,FALSE) -> 115 | I35: 45 | J35: 80 | L35: 240 | M35: 278.50 | N35: 32
A36: 一志愿 | B36: 085600 | C36: 材料与化工 | E36: 代子鑫 | F36: 102895210703812 | G36: 292 | H36: =VLOOKUP(E36,[1]sheet1!$C$10:$L$81,10,FALSE) -> 124 | I36: 38 | J36: 85 | L36: =H36+I36+J36 -> 247 | M36: =G36*0.7+L36*0.3 -> 278.50 | N36: 33
A37: 一志愿 | B37: 085600 | C37: 材料与化工 | E37: 吴子文 | F37: 102895210701981 | G37: 303 | H37: =VLOOKUP(E37,[1]sheet1!$C$10:$L$81,10,FALSE) -> 90 | I37: 46 | J37: 84 | L37: 220 | M37: 278.05 | N37: 34
A38: 一志愿 | B38: 085600 | C38: 材料与化工 | E38: 高增超 | F38: 102895210700561 | G38: 290 | H38: =VLOOKUP(E38,[1]sheet1!$C$10:$L$81,10,FALSE) -> 118 | I38: 40 | J38: 88 | L38: 246 | M38: 276.80 | N38: 35
A39: 一志愿 | B39: 085600 | C39: 材料与化工 | E39: 张天顺 | F39: 102895210701990 | G39: 293 | H39: =VLOOKUP(E39,[1]sheet1!$C$10:$L$81,10,FALSE) -> 109 | I39: 42 | J39: 86 | L39: 237 | M39: 276.20 | N39: 36
A40: 一志愿 | B40: 085600 | C40: 材料与化工 | E40: 翟嘉锐 | F40: 102895210701989 | G40: 294 | H40: =VLOOKUP(E40,[1]sheet1!$C$10:$L$81,10,FALSE) -> 107 | I40: 39 | J40: 88 | L40: 234 | M40: 276.00 | N40: 37
A41: 一志愿 | B41: 085600 | C41: 材料与化工 | E41: 王鑫晶 | F41: 102895210704350 | G41: 288 | H41: =VLOOKUP(E41,[1]sheet1!$C$10:$L$81,10,FALSE) -> 126 | I41: 41 | J41: 76 | L41: 243 | M41: 274.50 | N41: 38
A42: 一志愿 | B42: 085600 | C42: 材料与化工 | E42: 王洋 | F42: 102895210701979 | G42: 288 | H42: =VLOOKUP(E42,[1]sheet1!$C$10:$L$81,10,FALSE) -> 117 | I42: 40 | J42: 85 | L42: 242 | M42: 274.28 | N42: 39
A43: 一志愿 | B43: 085600 | C43: 材料与化工 | E43: 严楷 | F43: 102895210701986 | G43: 285 | H43: =VLOOKUP(E43,[1]sheet1!$C$10:$L$81,10,FALSE) -> 115 | I43: 40 | J43: 85 | L43: 240 | M43: 271.50 | N43: 40
A44: 一志愿 | B44: 085600 | C44: 材料与化工 | E44: 毛陆鑫 | F44: 102895210700576 | G44: 291 | H44: =VLOOKUP(E44,[1]sheet1!$C$10:$L$81,10,FALSE) -> 99 | I44: 40 | J44: 84 | L44: 223 | M44: 270.60 | N44: 41
A45: 一志愿 | B45: 085600 | C45: 材料与化工 | E45: 李扣华 | F45: 102895210700566 | G45: 285 | H45: =VLOOKUP(E45,[1]sheet1!$C$10:$L$81,10,FALSE) -> 115 | I45: 42 | J45: 79 | L45: 236 | M45: 270.30 | N45: 42
A46: 一志愿 | B46: 085600 | C46: 材料与化工 | E46: 颜明旭 | F46: 102895210702392 | G46: 292 | H46: =VLOOKUP(E46,[1]sheet1!$C$10:$L$81,10,FALSE) -> 114 | I46: 35 | J46: 70 | L46: 219 | M46: 270.10 | N46: 43
A47: 一志愿 | B47: 085600 | C47: 材料与化工 | E47: 宋飞 | F47: 102895210700587 | G47: 283 | H47: =VLOOKUP(E47,[1]sheet1!$C$10:$L$81,10,FALSE) -> 104 | I47: 41 | J47: 88 | L47: 233 | M47: 267.93 | N47: 44
A48: 一志愿 | B48: 085600 | C48: 材料与化工 | E48: 马俊杰 | F48: 102895210700575 | G48: 282 | H48: =VLOOKUP(E48,[1]sheet1!$C$10:$L$81,10,FALSE) -> 111 | I48: 41 | J48: 80 | L48: 232 | M48: 267.00 | N48: 45
A49: 一志愿 | B49: 085600 | C49: 材料与化工 | E49: 张士涛 | F49: 102895210700605 | G49: 274 | H49: =VLOOKUP(E49,[1]sheet1!$C$10:$L$81,10,FALSE) -> 124 | I49: 38 | J49: 85 | L49: 247 | M49: 265.90 | N49: 46
A50: 一志愿 | B50: 085600 | C50: 材料与化工 | E50: 石玉婷 | F50: 102895210704087 | G50: 276 | H50: =VLOOKUP(E50,[1]sheet1!$C$10:$L$81,10,FALSE) -> 102 | I50: 44 | J50: 95 | L50: 241 | M50: 265.50 | N50: 47
A51: 一志愿 | B51: 085600 | C51: 材料与化工 | E51: 石志康 | F51: 102895210701973 | G51: 283 | H51: =VLOOKUP(E51,[1]sheet1!$C$10:$L$81,10,FALSE) -> 115 | I51: 35 | J51: 70 | L51: 220 | M51: 264.10 | N51: 48
A52: 一志愿 | B52: 085600 | C52: 材料与化工 | E52: 徐国庆 | F52: 102895210703434 | G52: 281 | H52: =VLOOKUP(E52,[1]sheet1!$C$10:$L$81,10,FALSE) -> 94 | I52: 40 | J52: 85 | L52: 219 | M52: 262.40 | N52: 49
A53: 一志愿 | B53: 085600 | C53: 材料与化工 | E53: 黄洋 | F53: 102895210700564 | G53: 272 | H53: =VLOOKUP(E53,[1]sheet1!$C$10:$L$81,10,FALSE) -> 99 | I53: 45 | J53: 95 | L53: 239 | M53: 262.10 | N53: 50
A54: 一志愿 | B54: 085600 | C54: 材料与化工 | E54: 赵晓晨 | F54: 102895210702124 | G54: 278 | H54: =VLOOKUP(E54,[1]sheet1!$C$10:$L$81,10,FALSE) -> 101 | I54: 45 | J54: 76 | L54: 222 | M54: 261.20 | N54: 51
A55: 一志愿 | B55: 085600 | C55: 材料与化工 | E55: 沈思达 | F55: 102895210700586 | G55: 264 | H55: =VLOOKUP(E55,[1]sheet1!$C$10:$L$81,10,FALSE) -> 134 | I55: 43 | J55: 77 | L55: 254 | M55: 261.00 | N55: 52
A56: 一志愿 | B56: 085600 | C56: 材料与化工 | E56: 陈杰 | F56: 102895210705143 | G56: 271 | H56: =VLOOKUP(E56,[1]sheet1!$C$10:$L$81,10,FALSE) -> 110 | I56: 40 | J56: 82 | L56: 232 | M56: 259.30 | N56: 53
A57: 一志愿 | B57: 085600 | C57: 材料与化工 | E57: 任洺雨 | F57: 102895210700945 | G57: 278 | H57: =VLOOKUP(E57,[1]sheet1!$C$10:$L$81,10,FALSE) -> 100 | I57: 37 | J57: 78 | L57: 215 | M57: 259.10 | N57: 54
A58: 一志愿 | B58: 085600 | C58: 材料与化工 | E58: 赵李岭 | F58: 102895210700606 | G58: 261 | H58: =VLOOKUP(E58,[1]sheet1!$C$10:$L$81,10,FALSE) -> 119 | I58: 40 | J58: 90 | L58: 249 | M58: 257.40 | N58: 55
A59: 一志愿 | B59: 085600 | C59: 材料与化工 | E59: 杜旭阳 | F59: 102895210705199 | G59: 283 | H59: =VLOOKUP(E59,[1]sheet1!$C$10:$L$81,10,FALSE) -> 91 | I59: 30 | J59: 75 | L59: 196 | M59: 256.90 | N59: 56
A60: 一志愿 | B60: 085600 | C60: 材料与化工 | E60: 周长山 | F60: 102895210700609 | G60: 277 | H60: =VLOOKUP(E60,[1]sheet1!$C$10:$L$81,10,FALSE) -> 92 | I60: 35 | J60: 80 | L60: 207 | M60: 256.00 | N60: 57
A61: 一志愿 | B61: 085600 | C61: 材料与化工 | E61: 何佳乐 | F61: 102895210701961 | G61: 261 | H61: =VLOOKUP(E61,[1]sheet1!$C$10:$L$81,10,FALSE) -> 126 | I61: 35 | J61: 83 | L61: 244 | M61: 255.90 | N61: 58
A62: 一志愿 | B62: 085600 | C62: 材料与化工 | E62: 李论 | F62: 102895210704674 | G62: 268 | H62: =VLOOKUP(E62,[1]sheet1!$C$10:$L$81,10,FALSE) -> 102 | I62: 38 | J62: 85 | L62: 225 | M62: 255.10 | N62: 59
A63: 一志愿 | B63: 085600 | C63: 材料与化工 | E63: 万明月 | F63: 102895210700589 | G63: 274 | H63: =VLOOKUP(E63,[1]sheet1!$C$10:$L$81,10,FALSE) -> 103 | I63: 37 | J63: 70 | L63: 210 | M63: 254.80 | N63: 60
A64: 一志愿 | B64: 085600 | C64: 材料与化工 | E64: 张佳贺 | F64: 102895210704496 | G64: 263 | H64: =VLOOKUP(E64,[1]sheet1!$C$10:$L$81,10,FALSE) -> 106 | I64: 45 | J64: 83 | L64: 234 | M64: 254.30 | N64: 61
A65: 一志愿 | B65: 085600 | C65: 材料与化工 | E65: 丁庆伟 | F65: 102895210700558 | G65: 273 | H65: =VLOOKUP(E65,[1]sheet1!$C$10:$L$81,10,FALSE) -> 90 | I65: 40 | J65: 80 | L65: 210 | M65: 254.10 | N65: 62
A66: 一志愿 | B66: 085600 | C66: 材料与化工 | E66: 边世通 | F66: 102895210702238 | G66: 262 | H66: =VLOOKUP(E66,[1]sheet1!$C$10:$L$81,10,FALSE) -> 113 | I66: 38 | J66: 84 | L66: 235 | M66: 253.90 | N66: 63
A67: 一志愿 | B67: 085600 | C67: 材料与化工 | E67: 狄桢舜 | F67: 102895210705237 | G67: 267 | H67: =VLOOKUP(E67,[1]sheet1!$C$10:$L$81,10,FALSE) -> 90 | I67: 45 | J67: 88 | L67: 223 | M67: 253.80 | N67: 64
A68: 一志愿 | B68: 085600 | C68: 材料与化工 | E68: 杨亚丽 | F68: 102895210705231 | G68: 263 | H68: =VLOOKUP(E68,[1]sheet1!$C$10:$L$81,10,FALSE) -> 105 | I68: 38 | J68: 88 | L68: =H68+I68+J68 -> 231 | M68: =G68*0.7+L68*0.3 -> 253.40 | N68: 65
A69: 一志愿 | B69: 085600 | C69: 材料与化工 | E69: 赵英尚 | F69: 102895210700792 | G69: 269 | H69: =VLOOKUP(E69,[1]sheet1!$C$10:$L$81,10,FALSE) -> 93 | I69: 38 | J69: 84 | L69: 215 | M69: 252.80 | N69: 66
A70: 一志愿 | B70: 085600 | C70: 材料与化工 | E70: 舒镕 | F70: 102895210705183 | G70: 266 | H70: =VLOOKUP(E70,[1]sheet1!$C$10:$L$81,10,FALSE) -> 96 | I70: 40 | J70: 85 | L70: 221 | M70: 252.50 | N70: 67
A71: 一志愿 | B71: 085600 | C71: 材料与化工 | E71: 韩书格 | F71: 102895210704660 | G71: 264 | H71: =VLOOKUP(E71,[1]sheet1!$C$10:$L$81,10,FALSE) -> 107 | I71: 40 | J71: 70 | L71: 217 | M71: 249.90 | N71: 68
A72: 一志愿 | B72: 085600 | C72: 材料与化工 | E72: 曾先贵 | F72: 102895210701988 | G72: 268 | H72: =VLOOKUP(E72,[1]sheet1!$C$10:$L$81,10,FALSE) -> 91 | I72: 35 | J72: 80 | L72: 206 | M72: 249.40 | N72: 69
A73: 一志愿 | B73: 085600 | C73: 材料与化工 | E73: 卞瑞 | F73: 102895210700552 | G73: 271 | H73: =VLOOKUP(E73,[1]sheet1!$C$10:$L$81,10,FALSE) -> 91 | I73: 32 | J73: 72 | L73: 195 | M73: 248.20 | N73: 70
A74: 一志愿 | B74: 085600 | C74: 材料与化工 | E74: 文小辉 | F74: 102895210700595 | G74: 261 | H74: =VLOOKUP(E74,[1]sheet1!$C$10:$L$81,10,FALSE) -> 101 | I74: 45 | J74: 70 | L74: 216 | M74: 247.50 | N74: 71
A75: 一志愿 | B75: 085600 | C75: 材料与化工 | E75: 孙齐 | F75: 102895210700777 | G75: 244 | H75: 110 | I75: 40 | J75: 95 | L75: 245 | M75: 244.30 | N75: 72
M77: 2025-03-28
